bitfinex/quotes_SOLUSD_20260211
["timestamp","ask_amount","ask_price","bid_price","bid_amount"]
[1770803646912,0.6890991,80.814,80.784,0.72514427]
[1770803647428,0.6890991,80.819,80.786,0.72514427]
[1770803648327,3.77011587,80.81,80.786,0.72514427]
[1770803649031,3.76930265,80.81,80.786,0.72514427]
[1770803649510,0.6890991,80.819,80.788,0.72514427]
[1770803650821,43.36,80.833,80.79,0.72514427]
[1770803651009,3.76930265,80.82,80.79,0.72514427]
[1770803652218,3.76930265,80.82,80.792,0.72514427]
[1770803652420,3.76930265,80.82,80.794,0.72514427]
[1770803652818,3.76930265,80.82,80.795,43.31951233]
[1770803653017,3.76930265,80.82,80.796,0.72514427]
[1770803654423,3.76930265,80.84,80.803,0.14216157]
[1770803654625,3.76930265,80.84,80.805,0.72514427]
[1770803657806,0.157007,80.845,80.807,0.72514427]
[1770803658033,3.76930265,80.84,80.807,0.72514427]
[1770803658227,12.52647413,80.845,80.807,0.72514427]
[1770803658533,3.76930265,80.84,80.807,0.72514427]
[1770803659038,0.16253494,80.829,80.807,0.72514427]
[1770803662116,3.76930265,80.82,80.807,0.72514427]
[1770803666243,3.76930265,80.82,80.809,0.70981978]
[1770803666442,0.16253494,80.829,80.809,0.70981978]
[1770803666865,3.76930265,80.82,80.808,12.37501237]
[1770803667537,0.16911027,80.826,80.808,12.37501237]
[1770803668244,0.16911027,80.826,80.809,0.70981978]
[1770803669646,3.76930265,80.82,80.809,0.70981978]
[1770803671343,0.1706101,80.829,80.811,0.70981978]
[1770803673843,3.76930265,80.82,80.811,0.70981978]
[1770803675836,43.29272063,80.845,80.794,43.26]
[1770803675837,3.76930265,80.83,80.813,0.70981978]
[1770803678545,3.01533031,80.83,80.809,0.70981978]
[1770803678746,2.26135797,80.83,80.81,0.70981978]
[1770803680743,0.70134266,80.843,80.811,0.70981978]
[1770803680948,3.76930265,80.84,80.811,0.70981978]
[1770803681151,0.70134266,80.839,80.811,0.70981978]
[1770803681351,3.76930265,80.83,80.811,0.70981978]
[1770803682643,4.47064531,80.84,80.811,0.70981978]
[1770803682842,3.76930265,80.84,80.813,0.70981978]
[1770803683036,0.70134266,80.829,80.812,13.08421962]
[1770803683344,0.70134266,80.829,80.806,43.48]
[1770803683345,0.70134266,80.819,80.808,12.37497411]
[1770803683751,0.70134266,80.819,80.795,0.70981978]
[1770803683752,0.70134266,80.819,80.798,12.37652484]
[1770803683925,0.70134266,80.809,80.798,12.37652484]
[1770803684749,0.70134266,80.809,80.784,0.70981978]
[1770803684750,0.70134266,80.809,80.785,43.32487465]
[1770803684947,3.76930265,80.8,80.786,0.70981978]
[1770803685152,0.70134266,80.809,80.786,0.70981978]
[1770803685833,3.76930265,80.8,80.786,0.70981978]
[1770803686032,0.70134266,80.809,80.786,0.70981978]
[1770803686437,34.69458716,80.84,80.785,12.37853561]
[1770803686438,0.70134266,80.799,80.785,12.37853561]
[1770803686856,0.70134266,80.799,80.78,0.70981978]
[1770803687040,0.70134266,80.789,80.774,43.6]
[1770803687744,0.70134266,80.789,80.77,0.70981978]
[1770803688249,0.70134266,80.789,80.771,13.09050096]
[1770803689143,0.70134266,80.789,80.772,0.70981978]
[1770803690254,0.70134266,80.789,80.773,12.38037463]
[1770803696748,0.70134266,80.789,80.767,0.74537258]
[1770803698647,0.70134266,80.789,80.766,43.33506672]
[1770803698648,0.70134266,80.789,80.769,0.74537258]
[1770803700158,0.70134266,80.789,80.768,12.38114104]
[1770803700358,0.70134266,80.789,80.74,8.90160114]
[1770803700359,0.75029266,80.779,80.744,12.38472656]
[1770803700552,0.75029266,80.779,80.72,0.2]
[1770803700553,0.75029266,80.787,80.74,0.74537258]
[1770803700762,3.77127612,80.76,80.74,0.74537258]
[1770803701261,0.75029266,80.763,80.74,0.74537258]
[1770803701441,0.75029266,80.759,80.741,0.14216157]
[1770803701641,3.77127612,80.77,80.742,0.14216157]
[1770803701845,3.77127612,80.77,80.745,0.74537258]
[1770803702042,4.52156878,80.77,80.745,0.74537258]
[1770803702259,0.75029266,80.769,80.745,0.74537258]
[1770803702447,12.37807595,80.788,80.746,44.14]
[1770803702448,4.52156878,80.76,80.746,44.14]
[1770803702654,0.75029266,80.759,80.746,44.14]
[1770803702854,0.75029266,80.759,80.74,0.74537258]
[1770803702855,0.75029266,80.759,80.747,12.38436102]
[1770803703852,3.77127612,80.77,80.744,0.74537258]
[1770803704380,0.75029266,80.769,80.744,0.74537258]
[1770803705565,0.75029266,80.759,80.741,0.74537258]
[1770803705869,0.75029266,80.759,80.742,12.38512793]
[1770803706075,0.75029266,80.749,80.726,44.18]
[1770803706276,0.75029266,80.749,80.726,44.92537258]
[1770803706575,3.77127612,80.75,80.731,0.74537258]
[1770803706780,12.38166487,80.765,80.731,0.74537258]
[1770803706781,0.75029266,80.756,80.731,0.74537258]
[1770803707851,3.77127612,80.77,80.733,0.74537258]
[1770803708072,3.77127612,80.77,80.732,43.49547871]
[1770803708073,4.52156878,80.77,80.735,0.74537258]
[1770803708371,0.75029266,80.769,80.735,0.74537258]
[1770803709552,0.75029266,80.749,80.732,12.38666204]
[1770803711561,0.75029266,80.749,80.729,44.2]
[1770803711770,0.75029266,80.749,80.729,56.58704032]
[1770803712273,0.75029266,80.749,80.729,12.38704032]
[1770803713369,0.75029266,80.749,80.723,12.38804306]
[1770803713560,0.75029266,80.749,80.724,0.74537258]
[1770803715979,0.75029266,80.759,80.726,0.74537258]
[1770803716368,0.75029266,80.759,80.728,0.74537258]
[1770803716877,3.77488444,80.77,80.731,0.74537258]
[1770803717078,0.75029266,80.769,80.733,0.74537258]
[1770803717378,0.75029266,80.769,80.735,0.74537258]
[1770803718573,42.28,80.797,80.736,12.38604835]
[1770803718574,0.75029266,80.759,80.736,12.38604835]
[1770803718876,0.75029266,80.759,80.736,56.92604835]
[1770803720474,0.75029266,80.759,80.736,12.38604835]
[1770803720672,0.75029266,80.759,80.737,0.75711587]
[1770803722075,0.75704344,80.768,80.739,0.75711587]
[1770803723557,0.75704344,80.79,80.751,0.75711587]
[1770803723764,0.75704344,80.79,80.753,0.89927744]
[1770803724363,0.75704344,80.79,80.755,0.75711587]
[1770803724561,0.75704344,80.79,80.757,0.75711587]
[1770803725662,3.77488444,80.8,80.761,0.77792736]
[1770803725862,3.77488444,80.8,80.764,0.77792736]
[1770803726275,0.74572716,80.799,80.764,0.77792736]
[1770803729272,0.74572716,80.799,80.766,0.77792736]
[1770803730587,0.74572716,80.819,80.781,0.77792736]
[1770803730767,0.74572716,80.819,80.784,0.77792736]
[1770803731381,0.74572716,80.819,80.786,0.77792736]
[1770803731682,0.74572716,80.829,80.793,0.77792736]
[1770803731862,0.74572716,80.829,80.795,0.77792736]
[1770803732971,0.74572716,80.828,80.795,0.77792736]
[1770803733571,0.74572716,80.828,80.796,13.15477769]
[1770803734270,0.74572716,80.828,80.796,44.09690353]
[1770803735168,0.74572716,80.828,80.796,43.31897617]
[1770803735484,0.74572716,80.828,80.798,13.15447133]
[1770803735685,0.74572716,80.828,80.799,0.77792736]
[1770803737369,41.74,80.847,80.798,43.3179039]
[1770803737370,0.74572716,80.819,80.798,12.37641514]
[1770803737590,0.74572716,80.819,80.8,12.37623762]
[1770803737788,0.74572716,80.824,80.801,0.77792736]
[1770803738168,0.74572716,80.819,80.795,12.37689552]
[1770803738377,0.74572716,80.819,80.798,12.37647427]
[1770803739398,0.74572716,80.819,80.791,30.94391661]
[1770803739578,0.74572716,80.819,80.789,12.37792273]
[1770803740285,0.74572716,80.817,80.789,12.37792273]
[1770803740791,0.74572716,80.817,80.789,13.15585009]
[1770803742190,0.74572716,80.817,80.79,0.77792736]
[1770803743680,0.74572716,80.839,80.791,0.77792736]
[1770803743900,0.74572716,80.819,80.788,45.04]
[1770803744089,0.74572716,80.819,80.788,45.81792736]
[1770803744492,0.74572716,80.819,80.789,13.15585009]
[1770803744796,0.74572716,80.819,80.79,0.77792736]
[1770803745697,41.5,80.842,80.785,45.08]
[1770803745698,0.74572716,80.809,80.785,45.08]
[1770803745992,0.74572716,80.809,80.785,45.85792736]
[1770803746195,0.74572716,80.809,80.786,0.77792736]
[1770803747301,0.74572716,80.809,80.789,12.37792273]
[1770803748094,0.74572716,80.809,80.789,13.15585009]
[1770803748478,0.74572716,80.819,80.791,0.77792736]
[1770803749294,0.74572716,80.819,80.793,0.77792736]
[1770803750485,0.74572716,80.819,80.78,3.77488444]
[1770803750486,0.71084826,80.829,80.795,0.74046648]
[1770803753396,0.71084826,80.829,80.797,0.74046648]
[1770803754408,0.71084826,80.819,80.797,0.74046648]
[1770803754580,0.71084826,80.829,80.797,0.74046648]
[1770803755503,0.71084826,80.829,80.799,0.74046648]
[1770803756503,0.71084826,80.829,80.801,0.74046648]
[1770803757584,0.71084826,80.829,80.803,0.74046648]
[1770803759299,0.71084826,80.843,80.803,0.74046648]
[1770803759503,0.71084826,80.843,80.805,0.74046648]
[1770803759805,0.71084826,80.843,80.807,0.74046648]
[1770803760509,0.71084826,80.843,80.809,0.74046648]
[1770803760800,3.77488444,80.84,80.811,0.74046648]
[1770803760984,4.4857327,80.84,80.811,0.74046648]
[1770803761184,0.71084826,80.839,80.811,0.74046648]
[1770803762706,0.71084826,80.839,80.813,0.74046648]
[1770803764713,0.71084826,80.839,80.814,12.37409359]
[1770803764895,0.71084826,80.839,80.815,0.74046648]
[1770803765594,0.71084826,80.849,80.816,0.74046648]
[1770803767304,0.71084826,80.849,80.818,0.74046648]
[1770803767498,0.71084826,80.849,80.82,0.74046648]
[1770803767708,0.71084826,80.849,80.822,0.74046648]
[1770803769814,0.71084826,80.849,80.824,0.74046648]
[1770803772924,0.71084826,80.849,80.825,12.37240952]
[1770803773222,0.71084826,80.849,80.826,0.74046648]
[1770803774426,0.71084826,80.849,80.827,12.37210338]
[1770803775620,0.71084826,80.849,80.827,0.74046648]
[1770803776413,0.71084826,80.869,80.831,0.74046648]
[1770803776616,0.71084826,80.869,80.833,0.74046648]
[1770803777238,0.71084826,80.866,80.833,0.74046648]
[1770803778933,0.71084826,80.866,80.835,0.74046648]
[1770803779107,0.71084826,80.866,80.837,0.74046648]
[1770803779305,0.71084826,80.866,80.838,45.64]
[1770803779508,0.71084826,80.864,80.839,0.74046648]
[1770803779720,0.71084826,80.864,80.839,46.38046648]
[1770803779911,0.71084826,80.864,80.84,0.74046648]
[1770803781208,0.71084826,80.864,80.842,0.68918942]
[1770803783025,0.71084826,80.864,80.85,3.7655564]
[1770803783238,0.71256307,80.869,80.851,13.05762023]
[1770803783911,0.71256307,80.869,80.851,12.36843081]
[1770803784525,0.71256307,80.869,80.847,12.36904275]
[1770803784925,0.71256307,80.869,80.847,13.05823217]
[1770803785125,0.71256307,80.869,80.848,0.69483405]
[1770803787132,0.1,80.87,80.851,0.69483405]
[1770803787338,0.78872062,80.87,80.849,12.36873678]
[1770803788526,4.55427702,80.87,80.841,0.69483405]
[1770803788716,0.68872062,80.859,80.841,12.36983262]
[1770803790738,0.68872062,80.859,80.837,12.37046875]
[1770803791128,0.68872062,80.859,80.838,0.69483405]
[1770803791533,0.68872062,80.859,80.837,12.37046875]
[1770803793523,0.68872062,80.859,80.837,0.69483405]
[1770803794939,0.68872062,80.859,80.84,12.3701138]
[1770803795131,0.68872062,80.859,80.841,0.69483405]
[1770803796139,0.68872062,80.859,80.842,12.36980777]
[1770803796342,0.68872062,80.859,80.843,0.69483405]
[1770803800139,0.68872062,80.859,80.842,12.36980777]
[1770803801149,0.68872062,80.859,80.842,13.06464182]
[1770803803559,0.68872062,80.859,80.842,12.36980777]
[1770803809066,0.68872062,80.859,80.842,13.06464182]
[1770803809942,0.68872062,80.859,80.842,12.36980777]
[1770803814877,0.68872062,80.859,80.842,13.07764034]
[1770803815456,0.68872062,80.859,80.843,0.70783257]
[1770803817356,0.74555612,80.857,80.838,13.07825242]
[1770803817661,0.74555612,80.857,80.839,0.70783257]
[1770803820880,0.74555612,80.857,80.84,12.3701138]
[1770803822078,0.74555612,80.857,80.839,0.70783257]
[1770803822079,0.74555612,80.855,80.82,3.76470385]
[1770803822258,0.74555612,80.839,80.808,0.70783257]
[1770803822455,0.74555612,80.839,80.807,46.8]
[1770803822456,0.74555612,80.839,80.821,12.37292083]
[1770803824858,0.74555612,80.839,80.814,0.70783257]
[1770803825261,0.74555612,80.839,80.813,12.37424671]
[1770803825585,0.74555612,80.839,80.813,13.08207928]
[1770803825884,0.74555612,80.839,80.814,0.70783257]
[1770803829165,0.74555612,80.839,80.81,30.93660625]
[1770803829391,0.74555612,80.839,80.811,0.70783257]
[1770803831683,0.74555612,80.839,80.813,0.70783257]
[1770803831858,0.74555612,80.829,80.812,12.37439984]
[1770803832986,0.74555612,80.829,80.812,13.08223241]
[1770803833661,0.74555612,80.829,80.814,12.37409359]
[1770803833868,0.74555612,80.829,80.814,13.08192616]
[1770803834074,0.74555612,80.829,80.815,0.70783257]
[1770803834874,0.74555612,80.839,80.815,0.70783257]
[1770803836783,0.74555612,80.847,80.82,3.76769129]
[1770803836999,0.74555612,80.859,80.821,0.70783257]
[1770803837285,0.74555612,80.858,80.821,0.70783257]
[1770803838583,0.74555612,80.856,80.823,0.70783257]
[1770803840585,0.74555612,80.856,80.824,12.3725626]
[1770803840783,0.69612823,80.849,80.825,0.72147086]
[1770803841682,0.69612823,80.849,80.826,12.37225645]
[1770803841889,0.69612823,80.849,80.827,0.72147086]
[1770803843796,0.69612823,80.849,80.829,0.72147086]
[1770803845297,0.69612823,80.849,80.822,30.93217193]
[1770803845298,0.69612823,80.849,80.831,0.69395478]
[1770803849695,0.69612823,80.849,80.832,12.37133808]
[1770803850380,0.69612823,80.849,80.832,13.06529286]
[1770803850894,0.69612823,80.849,80.833,0.69395478]
[1770803851674,12.36742537,80.858,80.833,0.69395478]
[1770803851675,0.69732658,80.857,80.833,0.69395478]
[1770803852702,0.69732658,80.857,80.835,0.69395478]
[1770803856788,0.69732658,80.855,80.835,0.69395478]
[1770803858500,0.69732658,80.855,80.837,0.69395478]
[1770803858691,0.69732658,80.855,80.836,13.06468069]
[1770803858890,0.69732658,80.855,80.837,0.69395478]
[1770803859095,0.69732658,80.855,80.838,12.37041985]
[1770803859295,0.69732658,80.855,80.839,0.69395478]
[1770803861989,0.69732658,80.855,80.84,12.3701138]
[1770803863611,0.69732658,80.855,80.84,0.69395478]
[1770803863806,3.86769129,80.87,80.851,0.69395478]
[1770803863807,0.1,80.87,80.851,0.69395478]
[1770803865610,0.1,80.87,80.853,0.69395478]
[1770803867309,0.1,80.87,80.855,0.69395478]
[1770803868298,0.1,80.87,80.854,12.36797189]
[1770803868299,0.69732658,80.869,80.854,12.36797189]
[1770803869801,0.69732658,80.869,80.854,13.06192667]
[1770803870197,0.69732658,80.869,80.854,12.36797189]
[1770803870714,0.69732658,80.869,80.85,12.36851453]
[1770803870912,0.73955871,80.867,80.839,0.70036234]
[1770803871100,0.73955871,80.867,80.846,12.36915646]
[1770803871405,0.73955871,80.867,80.847,0.70036234]
[1770803871608,0.73955871,80.867,80.846,12.36915646]
[1770803871814,0.73955871,80.867,80.842,12.36974235]
[1770803872016,0.73955871,80.867,80.843,0.70036234]
[1770803872313,0.73955871,80.867,80.846,13.06954955]
[1770803872616,0.73955871,80.867,80.846,0.70036234]
[1770803873116,0.73955871,80.865,80.842,13.07012783]
[1770803874307,0.73955871,80.865,80.843,0.70036234]
[1770803874527,0.73955871,80.865,80.842,12.36976549]
[1770803874713,0.73955871,80.849,80.82,47.54]
[1770803874904,0.73955871,80.849,80.778,5.36086188]
[1770803874905,0.73955871,80.839,80.812,12.37436134]
[1770803875611,0.73955871,80.829,80.812,12.37436134]
[1770803876115,0.73955871,80.829,80.808,13.07530354]
[1770803879928,0.73955871,80.829,80.809,0.70036234]
[1770803882223,0.73955871,80.829,80.811,0.70036234]
[1770803882605,0.73955871,80.829,80.81,12.3747061]
[1770803882821,0.73955871,80.829,80.811,0.70036234]
[1770803885410,0.73955871,80.829,80.812,12.37439984]
[1770803886226,0.73955871,80.829,80.813,0.70036234]
[1770803888213,3.76769129,80.83,80.815,0.70036234]
[1770803891710,0.73955871,80.829,80.815,0.70036234]
[1770803894540,0.73955871,80.829,80.8,0.70036234]
[1770803894723,3.76769129,80.82,80.8,0.70036234]
[1770803894913,0.73955871,80.826,80.8,0.70036234]
[1770803895312,0.73955871,80.837,80.8,0.70036234]
[1770803895841,0.73955871,80.837,80.801,0.70036234]
[1770803896639,0.73955871,80.837,80.803,0.70036234]
[1770803900640,41.42,80.843,80.79,51.30872788]
[1770803900641,41.42,80.843,80.811,0.71781774]
[1770803900826,0.68107262,80.845,80.811,0.71781774]
[1770803901241,0.68107262,80.829,80.811,0.71781774]
[1770803902341,0.68107262,80.829,80.812,13.09221758]
[1770803903432,0.68107262,80.829,80.812,12.37439984]
[1770803906047,0.68107262,80.829,80.81,0.72014963]
[1770803908941,0.68107262,80.829,80.812,0.72014963]
[1770803910244,0.68107262,80.829,80.813,12.37424671]
[1770803914340,0.68107262,80.829,80.799,47.82]
[1770803914341,0.7345104,80.819,80.8,0.72014963]
[1770803914571,0.7345104,80.819,80.804,12.37558855]
[1770803915436,0.7345104,80.819,80.8,0.72014963]
[1770803918749,0.7345104,80.819,80.801,12.37608445]
[1770803919738,0.7345104,80.819,80.802,0.72014963]
[1770803922155,0.7345104,80.819,80.804,0.72014963]
[1770803922363,0.7345104,80.829,80.804,0.72014963]
[1770803926059,0.7345104,80.829,80.806,0.72014963]
[1770803927860,0.7345104,80.829,80.807,12.37516551]
[1770803928364,0.7345104,80.829,80.807,13.09531514]
[1770803930370,0.7345104,80.829,80.808,0.73699152]
[1770803932368,0.7345104,80.829,80.809,13.11185075]
[1770803933171,0.7345104,80.829,80.81,0.73699152]
[1770803934465,0.7345104,80.829,80.812,0.73699152]
[1770803942282,0.7345104,80.829,80.808,0.73699152]
[1770803942487,0.7345104,80.829,80.81,12.37462003]
[1770803944489,3.76809242,80.83,80.809,0.73699152]
[1770803944790,40.02356824,80.832,80.802,0.73699152]
[1770803945094,40.02356824,80.832,80.804,0.73699152]
[1770803946772,40.02356824,80.832,80.806,0.73699152]
[1770803947573,0.70243375,80.833,80.806,0.73699152]
[1770803948873,0.70243375,80.833,80.808,0.73699152]
[1770803949970,0.70243375,80.829,80.809,12.37485923]
[1770803950170,0.70243375,80.829,80.809,13.11185075]
[1770803950372,0.70243375,80.829,80.81,0.73699152]
[1770803952293,0.70243375,80.829,80.811,13.11154448]
[1770803953384,0.70243375,80.829,80.812,0.73699152]
[1770803957004,0.70243375,80.829,80.808,0.73699152]
[1770803958693,12.37092205,80.835,80.808,0.73699152]
[1770803958694,0.70243375,80.837,80.808,0.73699152]
[1770803958876,0.70243375,80.836,80.808,0.73699152]
[1770803959077,12.37057288,80.837,80.8,47.08506768]
[1770803959078,0.70243375,80.829,80.81,0.73699152]
[1770803965382,0.70243375,80.829,80.812,0.74480396]
[1770803967804,0.70243375,80.829,80.811,12.37455296]
[1770803967805,0.70243375,80.829,80.808,0.74480396]
[1770803968904,0.70243375,80.829,80.801,0.74480396]
[1770803969897,0.70243375,80.829,80.802,12.37593128]
[1770803970098,0.70243375,80.829,80.803,0.74480396]
[1770803971506,0.70243375,80.829,80.805,0.74480396]
[1770803973411,0.70243375,80.829,80.807,0.74480396]
[1770803973614,42.24,80.838,80.808,0.74480396]
[1770803973911,3.76823601,80.83,80.808,0.74480396]
[1770803975505,0.67551344,80.829,80.809,12.37485923]
[1770803975710,0.67551344,80.829,80.81,0.74480396]
[1770803977720,0.67551344,80.829,80.811,13.11935692]
[1770803978606,0.67551344,80.829,80.811,12.37455296]
[1770803978809,12.37057288,80.837,80.796,30.94183079]
[1770803978810,0.67551344,80.819,80.797,0.74480396]
[1770803978995,3.76823601,80.82,80.797,0.74480396]
[1770803979910,12.37195031,80.828,80.797,0.74480396]
[1770803980105,3.76823601,80.83,80.797,0.74480396]
[1770803980424,0.00215333,80.83,80.797,0.74480396]
[1770803980918,0.31947438,80.829,80.799,0.74480396]
[1770803981125,0.00215333,80.83,80.799,0.7490571]
[1770803982204,30.92557991,80.84,80.783,49.28]
[1770803982205,12.37057288,80.837,80.801,0.7490571]
[1770803983123,3.76823601,80.83,80.801,0.7490571]
[1770803984216,3.76823601,80.83,80.803,0.7490571]
[1770803984422,12.37057288,80.837,80.803,0.7490571]
[1770803984928,3.76823601,80.83,80.803,0.7490571]
[1770803985726,3.76823601,80.83,80.805,0.7490571]
[1770803986428,32.31838561,80.84,80.805,0.7490571]
[1770803986604,40.28296532,80.84,80.805,0.7490571]
[1770803986806,3.76823601,80.83,80.805,0.7490571]
[1770803988530,40.28296532,80.84,80.807,0.7490571]
[1770803990532,40.28296532,80.84,80.809,0.7490571]
[1770803991727,3.76823601,80.83,80.809,0.7490571]
[1770803992612,3.76823601,80.83,80.811,0.7490571]
[1770803993726,129.884065,80.924,80.821,0.7490571]
[1770803993727,30.9081375,80.885,80.821,0.7490571]
[1770803994036,3.86823601,80.87,80.831,0.7490571]
[1770803995409,3.76823601,80.86,80.831,0.7490571]
[1770803995834,3.76823601,80.86,80.833,0.7490571]
[1770803996334,3.86823601,80.87,80.833,0.7490571]
[1770803996535,0.1,80.87,80.841,0.7490571]
[1770803997840,0.1,80.87,80.851,0.7490571]
[1770803998221,0.1,80.87,80.844,43.29325614]
[1770803998222,0.1,80.87,80.846,0.7490571]
[1770804000234,3.86823601,80.87,80.848,0.7490571]
[1770804000420,0.02135757,80.869,80.848,0.7490571]
[1770804001015,0.1,80.87,80.848,0.7490571]
[1770804002026,0.02322662,80.869,80.848,0.7490571]
[1770804002338,0.12322662,80.87,80.848,0.7490571]
[1770804002719,12.36414891,80.879,80.84,3.76823601]
[1770804002720,3.86823601,80.89,80.851,0.6990571]
[1770804002923,0.12421542,80.888,80.851,0.6990571]
[1770804003730,0.12421542,80.879,80.851,0.6990571]
[1770804004441,0.12421542,80.879,80.853,0.6990571]
[1770804007843,0.12808531,80.873,80.855,0.6990571]
[1770804008018,0.12902062,80.879,80.855,0.6990571]
[1770804009659,0.12993924,80.87,80.855,0.6990571]
[1770804010146,3.89817525,80.87,80.843,12.36962363]
[1770804010346,3.89817525,80.87,80.804,4.95325366]
[1770804010347,0.13085239,80.859,80.838,12.37031229]
[1770804010551,0.13085239,80.859,80.841,12.36987626]
[1770804010749,0.13085239,80.864,80.845,0.6990571]
[1770804011045,0.13085239,80.864,80.82,3.76823601]
[1770804011046,0.13175588,80.893,80.856,0.6990571]
[1770804011733,0.1,80.9,80.871,0.6990571]
[1770804011940,0.1,80.9,80.873,0.6990571]
[1770804012139,0.1,80.9,80.873,0.69089245]
[1770804013628,0.1,80.9,80.881,0.69089245]
[1770804013948,0.1,80.9,80.883,0.69089245]
[1770804016732,0.1,80.9,80.885,0.69089245]
[1770804018049,0.23823328,80.899,80.884,12.3633846]
[1770804018434,0.23823328,80.899,80.884,13.05427705]
[1770804018647,0.1,80.9,80.873,30.91259463]
[1770804018844,0.72555765,80.889,80.85,3.76275244]
[1770804019052,3.76275244,80.89,80.852,0.14216157]
[1770804019246,0.72555765,80.899,80.852,0.14216157]
[1770804019448,0.72555765,80.889,80.852,0.14216157]
[1770804019672,0.1,80.9,80.852,0.14216157]
[1770804019673,0.1,80.9,80.884,12.36327605]
[1770804019857,0.72555765,80.899,80.868,30.91443036]
[1770804020153,0.72555765,80.899,80.882,12.36360386]
[1770804020849,0.72555765,80.899,80.879,12.36401891]
[1770804021057,0.76227267,80.897,80.87,12.36537455]
[1770804021434,0.76227267,80.897,80.873,12.36491978]
[1770804022936,0.76227267,80.897,80.862,0.73269662]
[1770804023153,0.76227267,80.895,80.862,0.73269662]
[1770804025861,0.76227267,80.895,80.864,0.76734423]
[1770804027759,0.70877767,80.889,80.865,12.36628949]
[1770804028063,0.70877767,80.889,80.866,0.76734423]
[1770804029767,0.70877767,80.889,80.865,12.36628949]
[1770804030643,0.70877767,80.889,80.865,13.13363372]
[1770804031666,0.70877767,80.889,80.86,50.04]
[1770804031854,0.70877767,80.889,80.848,30.9219168]
[1770804031855,0.70877767,80.879,80.849,0.76734423]
[1770804032051,0.70877767,80.879,80.848,81.4019168]
[1770804032052,0.70877767,80.879,80.851,0.76734423]
[1770804032562,0.70877767,80.879,80.85,12.36858379]
[1770804032938,0.70877767,80.879,80.851,0.76734423]
[1770804033345,0.70877767,80.869,80.85,12.36858379]
[1770804033655,0.70877767,80.869,80.851,0.76734423]
[1770804033852,0.70877767,80.869,80.852,12.36827784]
[1770804034057,0.70877767,80.869,80.853,0.76734423]
[1770804034646,0.70877767,80.869,80.852,12.36827784]
[1770804034858,0.70877767,80.869,80.853,0.76734423]
[1770804035555,0.70877767,80.869,80.848,0.76734423]
[1770804036449,0.70877767,80.869,80.845,12.36934875]
[1770804036754,0.70877767,80.867,80.844,50.58]
[1770804036957,0.70877767,80.859,80.844,50.58]
[1770804037153,0.70877767,80.859,80.832,0.76734423]
[1770804037647,0.70877767,80.849,80.826,0.76734423]
[1770804037850,0.70877767,80.849,80.827,12.3720713]
[1770804038252,0.70877767,80.849,80.83,12.37156357]
[1770804040347,0.70877767,80.839,80.822,12.37285253]
[1770804040670,0.70877767,80.839,80.827,12.37210338]
[1770804041173,0.70877767,80.839,80.82,0.76734423]
[1770804041367,0.70877767,80.839,80.819,12.37331674]
[1770804041572,0.70877767,80.839,80.822,12.37276375]
[1770804042565,0.70877767,80.839,80.819,0.76734423]
[1770804042877,0.70877767,80.839,80.82,12.37317495]
[1770804043272,0.70877767,80.858,80.821,0.76734423]
[1770804043573,49.43437888,80.916,80.821,0.76734423]
[1770804043574,0.70877767,80.859,80.821,0.76734423]
[1770804043771,0.70877767,80.859,80.82,47.06886478]
[1770804043772,0.70877767,80.859,80.823,0.76734423]
[1770804044358,0.70877767,80.859,80.825,0.76734423]
[1770804044978,0.70877767,80.859,80.826,0.76734423]
[1770804045566,12.36736006,80.858,80.826,0.76734423]
[1770804045763,0.70877767,80.857,80.826,0.76734423]
[1770804046678,0.70877767,80.857,80.827,12.37210338]
[1770804046862,0.70877767,80.857,80.828,0.76734423]
[1770804049062,30.91350936,80.871,80.823,50.74]
[1770804049063,0.70877767,80.849,80.823,50.74]
[1770804049269,0.70877767,80.839,80.812,0.76734423]
[1770804049701,0.70877767,80.829,80.818,12.37333075]
[1770804049864,0.70877767,80.829,80.821,12.37293846]
[1770804050677,3.76275244,80.84,80.816,0.75624824]
[1770804051460,3.76275244,80.84,80.817,12.37363426]
[1770804051661,3.76275244,80.84,80.818,0.75624824]
[1770804052055,3.76275244,80.84,80.817,13.1298825]
[1770804052669,0.73578334,80.839,80.817,13.1298825]
[1770804053380,0.73578334,80.839,80.818,0.75624824]
[1770804055668,0.73578334,80.839,80.819,12.37332805]
[1770804056261,0.73578334,80.865,80.82,0.75624824]
[1770804056560,3.76757528,80.86,80.821,0.75624824]
[1770804056764,0.73578334,80.865,80.821,0.75624824]
[1770804056978,3.76757528,80.86,80.821,0.75624824]
[1770804057384,0.22,81.027,80.85,3.76757528]
[1770804057385,0.76328333,80.888,80.85,3.76757528]
[1770804057688,0.1,80.91,80.87,3.76757528]
[1770804057689,3.86757528,80.91,80.87,3.76757528]
[1770804057864,3.86757528,80.9,80.871,50.82]
[1770804058064,3.86757528,80.9,80.87,50.8]
[1770804058264,3.86757528,80.9,80.851,43.28950785]
[1770804058265,3.76757528,80.89,80.868,50.8]
[1770804058680,0.1,80.9,80.851,43.28950785]
[1770804058681,3.76757528,80.88,80.851,43.28950785]
[1770804059460,12.36262038,80.889,80.851,94.10950785]
[1770804059663,0.7632447,80.888,80.851,94.10950785]